Cogmind - Beta 13 @@@ ROGUE MODE // 2024.07.19 @ 14:08:33 Player: CeJaay Result: Destroyed by Y-45 Defender with Heavy Assault Rifle Performance ------------- Evolutions (1) 500 Regions Visited (4) 800 Robots Destroyed (25) 125 Value Destroyed (506) 506 Prototype IDs (0) 0 Alien Tech Used (0) 0 Bonus (0) 0 TOTAL SCORE: 1931 Bonus ------- None Cogmind --------- Core Integrity 0/400 Matter 280/300 Energy 94/100 System Corruption 18% Temperature Cool (57) Movement Core (50) Location -9/Storage Parts ------- > --- POWER (1) -------- (None) > --- PROPULSION (3) --- (None) > --- UTILITY (3) ------ Improved Targeting Computer > --- WEAPON (2) ------- Grenade Launcher > --- INVENTORY (5) ---- Drone Bay (2/2) Assault Rifle Light Assault Rifle Light Assault Rifle Light Assault Rifle Peak State ------------ > --- POWER ------------ Light Nuclear Core > --- PROPULSION ------- Aluminum Leg Aluminum Leg Flight Unit > --- UTILITY ---------- Small Storage Unit Improved Targeting Computer > --- WEAPON ----------- EM Shotgun Light Assault Rifle > --- INVENTORY -------- Light Ion Engine Light Ion Engine Flight Unit Flight Unit Assault Rifle Light Assault Rifle Datajack [Rating: 12] Favorites ----------- Power Light Ion Engine Engine Light Ion Engine Power Core Light Nuclear Core Propulsion Aluminum Leg Leg Aluminum Leg Flight Unit Flight Unit Utility Small Storage Unit Device Improved Terrain Scanner Storage Small Storage Unit Processor Improved Targeting Computer Protection Weapon Shielding Weapon Light Assault Rifle Energy Gun Medium Laser Ballistic Gun Light Assault Rifle Launcher Grenade Launcher Impact Weapon Mace Special Melee Weapon Datajack Build | -11 -10 -10 -9 -9 ------- Run | Yrd Mat Min Mat Sto Slots Evolved 2 | . . . 2 . Power . | . . . . . Propulsion 1 | . . . 1 . Utility 1 | . . . 1 . Weapon . | . . . . . Parts Attached 42 | 7 4 9 13 9 Power 8 | 1 2 2 1 2 Engine 7 | 1 2 1 1 2 Core 1 | . . 1 . . Reactor . | . . . . . Propulsion 15 | 2 . 2 8 3 Treads . | . . . . . Leg 5 | 2 . 2 1 . Wheel . | . . . . . Hover . | . . . . . Flight 10 | . . . 7 3 Utility 6 | 2 . 2 2 . Device 2 | 1 . 1 . . Storage 2 | 1 . . 1 . Processor 1 | . . 1 . . Hackware . | . . . . . Protection 1 | . . . 1 . Artifact . | . . . . . Weapon 13 | 2 2 3 2 4 Energy Gun 4 | 2 1 1 . . Energy Cannon . | . . . . . Ballistic Gun 5 | . 1 2 1 1 Ballistic Cannon . | . . . . . Launcher 1 | . . . . 1 Special Weapon . | . . . . . Impact Weapon 2 | . . . . 2 Slashing Weapon . | . . . . . Piercing Weapon . | . . . . . Special Melee Weapon 1 | . . . 1 . Unidentified Prototypes . | . . . . . Parts Lost 14 | . . 1 2 11 Power 2 | . . . . 2 Propulsion 6 | . . . 1 5 Utility 3 | . . 1 . 2 Weapon 3 | . . . 1 2 Highest Loss Streak 7 | . . 1 1 7 To Critical Strikes . | . . . . . Average Slot Usage (%) 96 | . 100 99 94 92 Engine 10 | . 14 7 10 9 Core 1 | . . 7 . . Leg 15 | . 28 28 . . Flight 12 | . . . 30 28 Device 5 | . 14 6 . . Storage 12 | . 14 14 11 11 Processor 6 | . . 7 11 11 Protection 4 | . . . 9 10 Energy Gun 11 | . 26 14 . . Ballistic Gun 11 | . 1 14 11 17 Impact Weapon 1 | . . . . 3 Special Melee Weapon 1 | . . . 8 . Naked Turns . | . . . . . Heaviest Build 16 | 14 16 16 14 13 Greatest Support 20 | 20 20 20 12 12 Greatest Overweight (x) 3 | 2 . . 1 3 Average Overweight (x) . | . . . . . Largest Inventory Capacity 8 | 8 8 8 8 8 Average Capacity 7 | 7 8 8 7 8 Most Carried 8 | 3 8 8 8 8 Average Carried 6 | 1 7 7 7 6 Final Capacity 8 | 8 8 8 8 5 Final Carried 8 | 3 8 8 7 5 Class Distribution -------------------- 52% | Mutant 47% | Scavenger-Mutant Dominant Class ---------------- Mutant | -10/Materials Mutant | -10/Mines Scavenger-Mutant | -9/Materials Scavenger-Mutant | -9/Storage Resources | -11 -10 -10 -9 -9 ----------- Run | Yrd Mat Min Mat Sto Matter Collected 606 | 201 89 145 99 72 Remotely . | . . . . . Salvage Created 686 | 20 125 346 130 65 Parts 55 | 3 8 26 11 7 Haulers Intercepted . | . . . . . Recyclers Shooed . | . . . . . Parts Field Recycled . | . . . . . Retrieved Matter . | . . . . . Parts Self-Destructed . | . . . . . Prevented . | . . . . . Kills | -11 -10 -10 -9 -9 ------- Run | Yrd Mat Min Mat Sto Combat Hostiles Destroyed 23 | . 4 13 5 1 Guns 22 | . 4 13 5 . AOE 1 | . . . . 1 Classes Destroyed 5 | 1 2 . 1 1 Builder 1 | . . . . 1 Tunneler 1 | 1 . . . . Swarmer 14 | . 1 9 4 . Grunt 7 | . 3 4 . . Sentry 2 | . . . 1 1 Best Kill Streak 6 | 1 1 6 3 2 Combat Bots Only 6 | . 1 6 3 1 Max Kills in Single Turn 2 | 1 1 2 1 2 Gunslinging . | . . . . . Exploded 1 | . . . . 1 Melee . | . . . . . Uniques/NPCs Destroyed . | . . . . . Combat | -11 -10 -10 -9 -9 -------- Run | Yrd Mat Min Mat Sto Hostile Shots Fired 190 | . 33 50 30 77 Missed 61 | . 10 17 14 20 Damage Taken 1694 | . 214 329 184 967 Core 516 | . 56 48 70 342 Absorbed by Shields . | . . . . . Redirected to Shielding 40 | . . . 6 34 Core Remaining (%) 79 | 100 . 58 . . Volleys Fired 60 | 1 14 23 16 6 Largest 2 | 2 2 2 1 2 Hottest 90 | 90 90 65 20 50 Shots Fired 104 | 2 28 46 16 12 Gun 103 | 2 28 46 16 11 Cannon . | . . . . . Launcher 1 | . . . . 1 Special . | . . . . . Kinetic 50 | . . 23 16 11 Thermal 30 | 2 28 . . . Explosive 1 | . . . . 1 Electromagnetic 23 | . . 23 . . Robot Hit Streak 11 | 2 11 7 7 7 Robot Miss Streak 3 | . 3 3 1 2 Penetration Max . | . . . . . Secondary Targets 5 | . . 5 . . Max Gunslinging Chain 1 | . . 1 . . Shots Hit Robots 73 | 2 18 29 17 7 Core Hits 51 | 1 7 23 8 12 Critical Kills . | . . . . . Critical Parts Destroyed . | . . . . . Critical Strikes . | . . . . . Melee Attacks 16 | . . . 5 11 Impact 11 | . . . . 11 Slashing . | . . . . . Piercing . | . . . . . Sneak Attacks . | . . . . . Combat Hostiles . | . . . . . Follow-up Attacks . | . . . . . Damage Inflicted 1049 | 23 209 395 118 304 Guns 792 | 23 209 395 118 47 Cannons . | . . . . . Explosions 214 | . . . . 214 Melee 34 | . . . . 34 Ramming 9 | . . . . 9 Kinetic 278 | . . 113 118 47 Thermal 232 | 23 209 . . . Explosive 214 | . . . . 214 Electromagnetic 282 | . . 282 . . Impact 34 | . . . . 34 Slashing . | . . . . . Piercing . | . . . . . Highest Corruption 18 | . . . . 18 Average Corruption 2 | . . . . 2 Corruption Purged . | . . . . . Corruption Blocked . | . . . . . Effects 3 | . . . . 3 Message Errors 2 | . . . . 2 Matter Fused 1 | . . . . 1 Overload Shots . | . . . . . Overflow Damage 7 | . . . . 7 Projectiles . | . . . . . Explosions 7 | . . . . 7 Melee . | . . . . . Knockbacks 2 | . . . . 2 Impact 2 | . . . . 2 Kinetic . | . . . . . Secondary . | . . . . . Self-Inflicted Damage 41 | . . . . 41 Shots 1 | . . . . 1 Rammed 4 | . . . . 4 Targets Rammed 4 | . . . . 4 Kicked . | . . . . . Crushed . | . . . . . Highest Temperature 150 | 30 150 110 9 21 Average Temperature 38 | 18 56 32 7 10 Received Heat Transfer 480 | . 42 78 36 324 Siege Activations . | . . . . . Robots Corrupted . | . . . . . Combat Hostiles . | . . . . . Parts Fried . | . . . . . Impact Corruptions . | . . . . . Robots Melted . | . . . . . Combat Hostiles . | . . . . . Parts Melted 1 | . 1 . . . Heat Transferred 608 | 62 546 . . . Parts Sabotaged . | . . . . . Parts Stolen . | . . . . . Parts Stripped . | . . . . . Power Chain Reactions 1 | . . 1 . . Alert | -11 -10 -10 -9 -9 ------- Run | Yrd Mat Min Mat Sto Peak Influence 385 | 5 158 385 310 331 Initial 150 | . 3 61 150 130 Average 174 | 2 61 272 202 222 Maximum Alert Level 1 | . . 1 1 1 Low Security (%) 61 | 100 100 22 63 47 Level 1 38 | . . 77 36 52 Level 2 . | . . . . . Level 3 . | . . . . . Level 4 . | . . . . . Level 5 . | . . . . . High Security . | . . . . . Max Security . | . . . . . Squads Dispatched 1 | . . . 1 . Investigation 1 | . . . 1 . Extermination . | . . . . . Reinforcement . | . . . . . Assault . | . . . . . Garrison . | . . . . . Intercept . | . . . . . Searches Triggered . | . . . . . Construction Impeded . | . . . . . Haulers Reinforced . | . . . . . Active Scanning Responses . | . . . . . Cargo Convoy Interrupts . | . . . . . Stealth | -11 -10 -10 -9 -9 --------- Run | Yrd Mat Min Mat Sto Distress Signals 3 | . 1 . . 2 Communications Jammed . | . . . . . Distress Signals . | . . . . . Times Spotted 48 | . 12 13 9 14 Peak Tracking Total 9 | . 4 3 7 9 Tactical Retreats 5 | . 2 . 1 2 Traps | -11 -10 -10 -9 -9 ------- Run | Yrd Mat Min Mat Sto Traps Triggered 2 | . . . 1 1 Indirectly . | . . . . . Trap Hack Attempts . | . . . . . Triggered . | . . . . . Disarmed . | . . . . . Reprogrammed . | . . . . . Reused . | . . . . . Traps Extracted . | . . . . . Installed . | . . . . . Triggered . | . . . . . Machines | -11 -10 -10 -9 -9 ---------- Run | Yrd Mat Min Mat Sto Machines Disabled . | . . . . . Max in Single Turn . | . . . . . Machines Repaired . | . . . . . Machines Dismantled . | . . . . . Machines Sabotaged . | . . . . . Overloaded Fab Kills . | . . . . . Hacking | -11 -10 -10 -9 -9 --------- Run | Yrd Mat Min Mat Sto Machines Accessed 6 | . 1 1 1 3 Terminals 6 | . 1 1 1 3 Fabricators . | . . . . . Repair Stations . | . . . . . Recycling Units . | . . . . . Scanalyzers . | . . . . . Garrison Access . | . . . . . Total Hacks 9 | . 2 1 1 5 Successful 6 | . 1 1 . 4 Failed 3 | . 1 . 1 1 Catastrophic . | . . . . . Database Lockouts . | . . . . . Manual . | . . . . . Terminals 9 | . 2 1 1 5 Fabricators . | . . . . . Repair Stations . | . . . . . Recycling Units . | . . . . . Scanalyzers . | . . . . . Garrison Access . | . . . . . Terminal Hacks 6 | . 1 1 . 4 Open Door 1 | . . . . 1 Alert Level 2 | . 1 . . 1 Locate Traps 2 | . . . . 2 Investigation Status 1 | . . 1 . . Fabricator Hacks . | . . . . . Repair Station Hacks . | . . . . . Recycling Unit Hacks . | . . . . . Scanalyzer . | . . . . . Garrison Access Hacks . | . . . . . Unauthorized Hacks . | . . . . . Terminals . | . . . . . Fabricators . | . . . . . Repair Stations . | . . . . . Recycling Units . | . . . . . Scanalyzers . | . . . . . Garrison Access . | . . . . . Data Cores Recovered . | . . . . . Used . | . . . . . Hacking Detections 2 | . 1 . . 1 Full Trace Events . | . . . . . Feedback Events . | . . . . . Feedback Blocked . | . . . . . Robot Schematics Acquired . | . . . . . Robots Built . | . . . . . Authchips . | . . . . . Time . | . . . . . Total Robot Build Rating . | . . . . . Part Schematics Acquired . | . . . . . Parts Built . | . . . . . Authchips . | . . . . . Time . | . . . . . Total Part Build Rating . | . . . . . Parts Repaired . | . . . . . Time . | . . . . . Parts Recycled . | . . . . . Recycled Matter . | . . . . . Retrieved Matter . | . . . . . Retrieved Components . | . . . . . Parts Scanalyzed . | . . . . . Part Schematics Acquired . | . . . . . Parts Damaged . | . . . . . Bothacking | -11 -10 -10 -9 -9 ------------ Run | Yrd Mat Min Mat Sto Used RIF Installer . | . . . . . Robots Hacked 1 | . . . 1 . Non-combat 1 | . . . 1 . Combat . | . . . . . Robot Hacks Applied 1 | . . . 1 . parse_system 1 | . . . 1 . Relay Couplers Released . | . . . . . Fabnet Peak Effective % . | . . . . . Robots Rewired . | . . . . . Allies Hacked . | . . . . . Hacks Repelled . | . . . . . Allies | -11 -10 -10 -9 -9 -------- Run | Yrd Mat Min Mat Sto Total Allies . | . . . . . Largest Group . | . . . . . Highest-Rated Group . | . . . . . Highest-Rated Ally . | . . . . . Total Orders . | . . . . . Ally Attacks . | . . . . . Total Damage . | . . . . . Kills . | . . . . . Allies Corrupted . | . . . . . Allies Melted . | . . . . . Intel | -11 -10 -10 -9 -9 ------- Run | Yrd Mat Min Mat Sto Robot Analysis Total . | . . . . . Derelict Logs Recovered 1 | . . 1 . . Drone Launches . | . . . . . Drone Recoveries . | . . . . . Exploration | -11 -10 -10 -9 -9 ------------- Run | Yrd Mat Min Mat Sto Turns Passed 1183 | 69 329 298 173 314 Spaces Moved 1247 | 46 180 173 286 562 Core 6 | 6 . . . . Treads . | . . . . . Legs 393 | 40 180 173 . . Wheels . | . . . . . Hover . | . . . . . Flight 848 | . . . 286 562 Fastest Speed 34 | 50 120 120 34 34 Average Speed 65 | 115 120 120 35 42 Slowest Speed 280 | 150 120 120 127 280 Overloaded Moves . | . . . . . Propulsion Burnouts . | . . . . . Robots Hopped 9 | . . . . 9 Cave-ins Triggered 1 | . . . . 1 Exploration Rate (%) 30 | 3 31 32 22 66 Regions Visited 4 Branch Regions 2 Pre-discovered Areas . | . . . . . Known Exits Taken . | . . . . . Unknown Exits Taken 4 | 1 1 1 1 . Scrap Searched 1 | . . 1 . . Spaces Dug 6 | . . . . 6 Terrain Destroyed 16 | . . 4 . 12 Melee 6 | . . . . 6 Projectile . | . . . . . AOE 10 | . . 4 . 6 Terrain Rammed . | . . . . . Walls Destroyed . | . . . . . Machines Disabled . | . . . . . Actions | -11 -10 -10 -9 -9 --------- Run | Yrd Mat Min Mat Sto Total 1486 | 56 266 223 345 596 Wait 65 | . 53 . 5 7 Move 1225 | 45 179 172 285 544 Hop 9 | . . . . 9 Pick Up 34 | 3 10 8 9 4 Fast Attach 11 | 7 1 . 3 . Attach 16 | . 1 2 7 6 Detach 1 | . . . 1 . Swap 15 | . 2 7 3 3 Drop 30 | . 6 11 11 2 Fire 60 | 1 14 23 16 6 Melee 16 | . . . 5 11 Ram 4 | . . . . 4 Kick . | . . . . . Crush . | . . . . . Escape Stasis . | . . . . . Rewire . | . . . . . Trap . | . . . . . Miscellaneous . | . . . . . Route ------- -11/Scrapyard -10/Materials -10/Mines -9/Materials -9/Storage History --------- Turn | Location | Event 4 | -11/Scrapyard | Discovered new exit (range 15) 70 | -11/Scrapyard | Entered Materials 305 | -10/Materials | Build established: Mutant 388 | -10/Materials | Discovered new exit (range 8) 399 | -10/Materials | Entered Mines 610 | -10/Mines | Learned 4 Materials zone layouts 641 | -10/Mines | Discovered new exit (range 10) 697 | -10/Mines | Entered Materials 697 | -9/Materials | Evolved 2 slots: Propulsion x1, Utility x1 759 | -9/Materials | Discovered new exit (range 16) 870 | -9/Materials | Entered Storage 941 | -9/Storage | Build established: Scavenger-Mutant 1079 | -9/Storage | Core integrity fell below 50% 1110 | -9/Storage | Lost 3 parts (1p2n) 1175 | -9/Storage | Crushed by falling debris 1175 | -9/Storage | System corruption reached 10% 1181 | -9/Storage | Core integrity fell below 20% 1184 | -9/Storage | Destroyed by Y-45 Defender with Heavy Assault Rifle Last Messages --------------- Slammed into G-34 Mercenary. G-34 Mercenary knocked back. Destabilizing: Core damaged (-12). Slammed into G-34 Mercenary. Destabilizing: System interference. Imp. Targeting Computer temporarily disabled. U-05 Engineer builds a Wall. Slammed into G-34 Mercenary. Imp. Targeting Computer broken. Destabilizing: Short circuit. Critical hit (Burn: +37). U-05 Engineer destroyed. Destroyed Sml. Laser. Y-45 Defender destroyed. Flight Unit destroyed. 7<0T2ONVAKV&2Q70VR/3F,F Lgt. Assault Rifle destroyed. Sml. Storage Unit destroyed. Critical hit (Burn: +37). Map ----- +----------------------------------------------------+ | | | | | | | | | | | ?????????????????????????????????????????????????? | | ????####?????????????????????????????????????????? | | ????# !#???????????##???????????????????????????? | | ????# !############ #???????????????????????????? | | ????# + #???????????????????????????? | | ????# # ##### ###???????????????#####???????? | | ????# # #???# #?????????????????# #???????? | | ????# # #???# #???????####???#### ######??? | | ##### =# #???# #???????# ???? # ##"""#??? | | ###+## #???# #???????# ????" # ##"Y"#### | | ]^] #???# #???????# "????" # # | | ] ##### #???# #???????# "????" + # """ | | #####+##### ######### "????" # # "R" | | + ## # ## "?"""" # # " " | | ^ # ## # ## """ + + | | [ # ## # ## # # == | | # ! + + ############ # == | | / ## # #??######??# # = [ | | # """" ## # Y ##?#!!! #### # | | %! # = """" ## #####Y ###!!! #T## ###" "### | | ! # """" # ### @b ## " # #?#"R"#?? | | # """" # gYYYu%##!! + #?#"""#?? | | ########## # !%[!##!! " # #?#####?? | | ####/#######????###### ] ##!! # # #???????? | | ??# #?????????# #[ ########## #???????? | | ??# #?????????#r######????????# #???????? | | ??# """""" ########### ############### #???????? | | ??# ?????" + / # #???????? | | ??# ?????" ###########+##### """" # ########? | | ??# """""" #????????# !??# "???" # # # !!!#? | | ??# #????????# #?# "????" # # #? | | ??# #????????# #?# ""???" + / #!!!!#? | | ??# #????????# #?# ""??" # #T######? | | #######+##########??# #?# """" # ###?????? | | #??# #?# # #???????? | | #??#[ #?########### #???????? | | #??#[ #???????????# #???????? | | ^ ########??# =#???????????# #???????? | | # #######???????????# #???????? | | |! # """ #????????????????# #???????? | | |! # """ #?????????????????# #???????? | | ! # """ #?????????????????# #???????? | | ^ + #?????????????????# #???????? | | # """"" #?????????????????# #???????? | | # """"" #?????????????????# #???????? | +----------------------------------------------------+ Best States ------------- Heat Dissipation 28 Energy Generation 14 Energy Capacity 250 Matter Stores 300 Matter Capacity 300 Sight Range 16 Terrain Scan Range 16 Terrain Scan Density 10 Weapon Shielding 33 Evasion (%) 63 Targeting Accuracy 6 Item Schematics ----------------- None Robot Schematics ------------------ None Fabricated ------------ Nothing Alien Tech Used ----------------- None Achievements -------------- None Challenges ------------ None Game ------ Seed CarbideForceFirepult Manual? 0 Play Time 00:22:39 Cumulative 11.3 hours Start 2024.07.19 @ 13:46:06 End 2024.07.19 @ 14:08:33 Sessions 1 Manual Loads 0 Difficulty Rogue Special Mode None Game No. 16 Rogue 16 Adventurer 0 Explorer 0 Win Type - Total 0 Types 0/0/0/0/0/0/0/0/0 Lore% 14 Gallery% 17 Achievement% 12 Wizard Run 0 Options --------- Layout 2 ASCII 0 Keyboard 0 Movement Mouse Keybinds 0 Fullscreen 2 Font 24/Smallcaps Map View 50x44 Zoom Use 0% Tactical HUD 0 Map Filters NONE Filters NONE Steam 1 RUN: d4e6bacd-5a90-4a63-b032-2389daa947c3